fUSD/lending_fUSD_20250111
["ID","MTS","AMOUNT","RATE_DAILY","PERIOD"]
[348486083,1736569849135,-511.18713777,9.996e-05,2]
[348486084,1736569849146,-500.0,9.996e-05,2]
[348486085,1736569849156,-501.07641967,9.996e-05,2]
[348486086,1736569849166,-500.0,9.996e-05,2]
[348486087,1736569849176,-500.0,9.996e-05,2]
[348486088,1736569849186,-500.0,9.996e-05,2]
[348486089,1736569849200,-538.72270014,9.996e-05,2]
[348486090,1736569849210,-500.0,9.996e-05,2]
[348486091,1736569849220,-500.0,9.996e-05,2]
[348486092,1736569849230,-500.0,9.996e-05,2]
[348486093,1736569849242,-506.1969,9.996e-05,2]
[348486094,1736569849252,-501.35829668,9.996e-05,2]
[348486095,1736569849263,-508.66335851,9.996e-05,2]
[348486096,1736569849274,-500.0,9.996e-05,2]
[348486097,1736569849284,-2098.85,9.996e-05,2]
[348486098,1736569849294,-505.05389822,9.996e-05,2]
[348486099,1736569849304,-500.0,9.996e-05,2]
[348486100,1736569849314,-500.0,9.996e-05,2]
[348486101,1736569849323,-501.70353724,9.996e-05,2]
[348486102,1736569849333,-500.0,9.996e-05,2]
[348486103,1736569849343,-505.67330385,9.996e-05,2]
[348486104,1736569849352,-500.0,9.996e-05,2]
[348486105,1736569849362,-500.0,9.996e-05,2]
[348486106,1736569849371,-500.0,9.996e-05,2]
[348486107,1736569849381,-500.0,9.996e-05,2]
[348486108,1736569849390,-500.0,9.996e-05,2]
[348486109,1736569849400,-322.43705019,9.996e-05,2]
[348486110,1736569849410,-769.27,9.996e-05,2]
[348486111,1736569849420,-506.71667321,9.996e-05,2]
[348486112,1736569849430,-500.0,9.996e-05,2]
[348486113,1736569849440,-501.06181885,9.996e-05,2]
[348486114,1736569849449,-500.0,9.996e-05,2]
[348486115,1736569849459,-500.0,9.996e-05,2]
[348486116,1736569849469,-500.0,9.996e-05,2]
[348486117,1736569849480,-500.0,9.996e-05,2]
[348486118,1736569849489,-500.0,9.996e-05,2]
[348486119,1736569849499,-500.0,9.996e-05,2]
[348486120,1736569849509,-502.81680035,9.996e-05,2]
[348486121,1736569849519,-508.69787232,9.996e-05,2]
[348486122,1736569849529,-500.0,9.996e-05,2]
[348486123,1736569849539,-501.92338529,9.996e-05,2]
[348486124,1736569849549,-500.84512883,9.996e-05,2]
[348486125,1736569849559,-500.0,9.996e-05,2]
[348486126,1736569849569,-500.0,9.996e-05,2]
[348486127,1736569849579,-191.64463007,9.996e-05,2]
[348486128,1736569849589,-511.31033627,9.996e-05,2]
[348486129,1736569849599,-503.53528803,9.996e-05,2]
[348486130,1736569849608,-191.45600159,9.996e-05,2]
[348486131,1736569849618,-912.94,9.996e-05,2]
[348486132,1736569849628,-500.0,9.996e-05,2]
[348486133,1736569849638,-500.0,9.996e-05,2]
[348486134,1736569849648,-1160.08,9.996e-05,2]
[348486135,1736569849658,-504.32201167,9.996e-05,2]
[348486136,1736569849668,-500.0,9.996e-05,2]
[348486137,1736569849678,-500.0,9.996e-05,2]
[348486138,1736569849688,-500.0,9.996e-05,2]
[348486139,1736569849697,-500.0,9.996e-05,2]
[348486140,1736569849707,-1410.31,9.996e-05,2]
[348486141,1736569849716,-309.30639086,9.996e-05,2]
[348486142,1736569849726,-500.0,9.996e-05,2]
[348486143,1736569849735,-500.0,9.996e-05,2]
[348486144,1736569849744,-505.45465083,9.996e-05,2]
[348486145,1736569849754,-500.0,9.996e-05,2]
[348486146,1736569849764,-1088.4,9.996e-05,2]
[348486147,1736569849774,-500.0,9.996e-05,2]
[348486148,1736569849783,-501.74123412,9.996e-05,2]
[348486149,1736569849793,-500.0,9.996e-05,2]
[348486150,1736569849803,-237.51848923,9.996e-05,2]
[348486151,1736569849813,-500.0,9.996e-05,2]
[348486152,1736569849823,-513.56143787,9.996e-05,2]
[348486153,1736569849833,-500.0,9.996e-05,2]
[348486154,1736569849843,-500.0,9.996e-05,2]
[348486155,1736569849852,-500.0,9.996e-05,2]
[348486156,1736569849863,-2333.72,9.996e-05,2]
[348486157,1736569849872,-500.0,9.996e-05,2]
[348486158,1736569849882,-500.0,9.996e-05,2]
[348486159,1736569849891,-500.0,9.996e-05,2]
[348486160,1736569849901,-1992.03,9.996e-05,2]
[348486161,1736569849910,-512.82584878,9.996e-05,2]
[348486162,1736569849921,-500.0,9.996e-05,2]
[348486163,1736569849931,-503.51420098,9.996e-05,2]
[348486164,1736569849941,-683.24,9.996e-05,2]
[348486165,1736569849951,-500.0,9.996e-05,2]
[348486166,1736569849961,-500.0,9.996e-05,2]
[348486167,1736569849971,-500.0,9.997e-05,2]
[348486168,1736569849981,-500.0,9.997e-05,2]
[348486169,1736569849991,-507.67903056,9.997e-05,2]
[348486170,1736569850001,-153.12235267,9.997e-05,2]
[348486171,1736569850012,-508.41432488,9.997e-05,2]
[348486172,1736569850021,-503.6662642,9.997e-05,2]
[348486173,1736569850031,-5039.84902446,9.997e-05,2]
[348486174,1736569850041,-500.0,9.997e-05,2]
[348486175,1736569850051,-511.5040241,9.997e-05,2]
[348486176,1736569850060,-504.23626648,9.997e-05,2]
[348486177,1736569850071,-500.0,9.997e-05,2]
[348486178,1736569850080,-506.03580558,9.997e-05,2]
[348486179,1736569850090,-500.0,9.997e-05,2]
[348486180,1736569850100,-501.61986024,9.997e-05,2]
[348486181,1736569850110,-500.0,9.997e-05,2]
[348486182,1736569850120,-561.5240863,9.997e-05,2]
[348486183,1736569850130,-500.0,9.997e-05,2]
[348486184,1736569850139,-500.0,9.997e-05,2]
[348486185,1736569850150,-492.4847969,9.997e-05,2]
[348486186,1736569850160,-500.0,9.997e-05,2]
[348486187,1736569850170,-430.57281889,9.997e-05,2]
[348486188,1736569850180,-500.0,9.997e-05,2]
[348486189,1736569850190,-503.21525376,9.997e-05,2]
[348486190,1736569850200,-541.84,9.997e-05,2]
[348486191,1736569850209,-500.0,9.997e-05,2]
[348486192,1736569850219,-1816.46,9.997e-05,2]
[348486193,1736569850229,-902.43,9.997e-05,2]
[348486194,1736569850239,-1027.42,9.997e-05,2]
[348486195,1736569850248,-696.27,9.997e-05,2]
[348486196,1736569850258,-500.0,9.997e-05,2]
[348486197,1736569850268,-500.0,9.997e-05,2]
[348486198,1736569850277,-718.42,9.997e-05,2]
[348486199,1736569850287,-500.0,9.997e-05,2]
[348486200,1736569850298,-500.0,9.997e-05,2]
[348486201,1736569850307,-500.0,9.997e-05,2]
[348486202,1736569850317,-751.71,9.997e-05,2]
[348486203,1736569850327,-888.32,9.997e-05,2]
[348486204,1736569850336,-500.0,9.997e-05,2]
[348486205,1736569850346,-500.0,9.997e-05,2]
[348486206,1736569850356,-1125.88,9.997e-05,2]
[348486207,1736569850366,-500.0,9.997e-05,2]
[348486208,1736569850376,-500.0,9.997e-05,2]
[348486209,1736569850386,-1076.09,9.997e-05,2]
[348486210,1736569850396,-971.15,9.997e-05,2]
[348486211,1736569850406,-1774.91,9.997e-05,2]
[348486212,1736569850415,-2338.19,9.997e-05,2]
[348486213,1736569850425,-2942.93,9.997e-05,2]
[348486214,1736569850434,-1045.09,9.997e-05,2]
[348486215,1736569850444,-1277.55,9.997e-05,2]
[348486216,1736569850454,-1565.79,9.997e-05,2]
[348486217,1736569850464,-500.0,9.997e-05,2]
[348486218,1736569850475,-821.43,9.997e-05,2]
[348486219,1736569850484,-500.0,9.997e-05,2]
[348486220,1736569850494,-856.79,9.997e-05,2]
[348486221,1736569850504,-500.0,9.997e-05,2]
[348486222,1736569850514,-980.03,9.997e-05,2]
[348486223,1736569850524,-500.0,9.997e-05,2]
[348486224,1736569850533,-8546.41601325,9.998e-05,3]
[348486225,1736569850543,-601.39,9.998e-05,2]
[348486226,1736569850553,-500.0,9.998e-05,2]
[348486227,1736569850562,-761.45,9.998e-05,2]
[348486228,1736569850573,-500.0,9.998e-05,2]
[348486229,1736569850582,-1556.78,9.998e-05,2]
[348486230,1736569850593,-500.0,9.998e-05,2]
[348486231,1736569850603,-500.0,9.998e-05,2]
[348486232,1736569850613,-500.0,9.998e-05,2]
[348486233,1736569850622,-405.22630065,9.998e-05,2]
[348486234,1736569850632,-1426.2,9.998e-05,2]
[348486235,1736569850642,-790.45,9.998e-05,2]
[348486236,1736569850652,-591.76,9.998e-05,2]
[348486237,1736569850662,-500.0,9.999e-05,2]
[348486238,1736569850672,-367.14813991,9.999e-05,2]
[348486239,1736569850682,-500.0,9.999e-05,2]
[348486240,1736569850692,-500.0,9.999e-05,2]
[348486241,1736569850702,-500.0,9.999e-05,2]
[348486242,1736569850711,-500.0,9.999e-05,2]
[348486243,1736569850721,-500.0,9.999e-05,2]
[348486244,1736569850731,-502.53819201,9.999e-05,2]
[348486245,1736569850741,-500.0,9.999e-05,2]
[348486246,1736569850751,-500.0,9.999e-05,2]
[348486247,1736569850760,-264.04325331,9.999e-05,2]
[348486248,1736569850770,-686.69,9.999e-05,2]
[348486249,1736569850779,-686.69,9.999e-05,2]
[348486250,1736569850789,-686.69,9.999e-05,2]
[348486251,1736569850798,-686.69,9.999e-05,2]
[348486252,1736569850807,-686.69,9.999e-05,2]
[348486253,1736569850818,-686.69,9.999e-05,2]
[348486254,1736569850828,-686.69,9.999e-05,2]
[348486255,1736569850838,-686.69,9.999e-05,2]
[348486256,1736569850847,-686.69,9.999e-05,2]
[348486257,1736569850856,-686.69,9.999e-05,2]
[348486258,1736569850867,-686.69,9.999e-05,2]
[348486259,1736569850877,-1277.55,9.999e-05,2]
[348486260,1736569850887,-1277.55,9.999e-05,2]
[348486261,1736569850896,-1277.55,9.999e-05,2]
[348486262,1736569850906,-1277.55,9.999e-05,2]
[348486263,1736569850915,-1277.55,9.999e-05,2]
[348486264,1736569850926,-1277.55,9.999e-05,2]
[348486265,1736569850937,-1277.55,9.999e-05,2]
[348486266,1736569850947,-1277.55,9.999e-05,2]
[348486267,1736569850956,-1277.55,9.999e-05,2]
[348486268,1736569850966,-1277.55,9.999e-05,2]
[348486269,1736569850976,-500.0,9.999e-05,2]
[348486270,1736569850986,-500.0,9.999e-05,2]
[348486271,1736569850996,-500.0,9.999e-05,2]
[348486272,1736569851076,-500.0,9.999e-05,2]
[348486273,1736569851086,-500.0,9.999e-05,2]
[348486274,1736569851095,-500.0,9.999e-05,2]
[348486275,1736569851105,-373.07973092,9.999e-05,2]
[348486276,1736569851114,-175137.41389161,0.0001,2]
[348486277,1736569851482,-1192.20706,0.0001,2]
[348486278,1736569851494,-1247.33195353,0.0001,2]
[348486279,1736569851507,-30579.78,0.0001,2]
[348486280,1736569851519,-1845.66805756,0.0001,2]
[348486281,1736569851531,-365.7149734,0.0001,2]
[348486282,1736569851558,-334.49237023,0.0001,2]
[348486283,1736569851571,-1213.55115148,0.0001,2]
[348486284,1736569851583,-1273.949995,0.0001,2]
[348486285,1736569851595,-4836.0,0.0001,2]
[348486286,1736569851606,-992.19903628,0.0001,2]
[348486287,1736569851618,-1104.77514956,0.0001,2]
[348486288,1736569851629,-831.71904704,0.0001,2]
[348486289,1736569851640,-50927.77416663,0.0001,2]
[348486290,1736569852086,-1076.24944658,0.0001,2]
[348486291,1736569852105,-268.40562925,0.0001,2]
[348486292,1736569852117,-501.771067,0.0001,2]
[348486293,1736569852129,-55055.92226752,0.0001,2]
[348486294,1736569852148,-485.49269538,0.0001,2]
[348486295,1736569852164,-313.17423195,0.0001,2]
[348486296,1736569852176,-2248.94703287,0.0001,2]
[348486297,1736569852188,-407.82269628,0.0001,2]
[348486298,1736569852205,-364225.61058701,0.0001,2]
[348486299,1736569852223,-22369.3985995,0.0001,2]
[348486300,1736569852249,-60852.57595984,0.0001,2]
[348486303,1736570602731,150.0,8.28e-05,2]
[348486304,1736570602782,150.0,8.323e-05,2]
[348486305,1736570602995,150.0,8.414e-05,2]
[348486306,1736570646324,758.13,8.219e-05,2]
[348486307,1736570663377,150.0,8.096e-05,2]
[348486308,1736570663541,150.0,8.219e-05,2]
[348486309,1736570663587,150.0,8.458e-05,2]
[348486310,1736570722853,150.0,8.487e-05,2]
[348486311,1736570723080,150.0,7.823e-05,2]
[348486319,1736571031514,-150.0,8.618e-05,2]
[348486320,1736571031526,-353.56,8.688e-05,2]
[348486321,1736571031535,-107.00000007,8.7e-05,2]
[348486322,1736571031548,-455.38999993,8.7e-05,2]
[348486323,1736571031558,-150.0,8.796e-05,2]
[348486324,1736571031568,-150.0,8.801e-05,2]
[348486325,1736571031578,-150.0,8.821e-05,2]
[348486326,1736571031588,-150.0,8.945e-05,2]
[348486327,1736571031599,-250.0,8.965e-05,2]
[348486328,1736571031608,-150.0,9.026e-05,2]
[348486329,1736571031618,-150.0,9.051e-05,2]
[348486330,1736571031628,-150.0,9.123e-05,2]
[348486331,1736571031638,-150.0,9.142e-05,2]
[348486332,1736571031648,-19.74000007,9.166e-05,2]
[348486333,1736571031668,-980.25999993,9.166e-05,2]
[348486334,1736571031678,-735.52,9.183e-05,2]
[348486335,1736571031687,-150.0,9.345e-05,2]
[348486336,1736571031697,-150.0,9.448e-05,2]
[348486337,1736571031707,-150.0,9.469e-05,2]
[348486338,1736571031716,-397.0,9.604e-05,2]
[348486339,1736571031726,-150.0,9.616e-05,2]
[348486340,1736571031736,-150.0,9.636e-05,2]
[348486341,1736571031745,-500.0,9.644e-05,2]
[348486342,1736571031755,-150.0,9.689e-05,2]
[348486343,1736571031767,-150.0,9.758e-05,2]
[348486344,1736571031776,-136.59093088,9.788e-05,2]
[348486345,1736571031789,-425.79906912,9.788e-05,2]
[348486346,1736571031800,-150.0,9.884e-05,2]
[348486347,1736571031811,-150.0,9.891e-05,2]
[348486348,1736571031821,-1051.39467982,9.9e-05,2]
[348486349,1736571031832,-70.61443213,9.9e-05,2]
[348486350,1736571031843,-7222.51810057,9.994e-05,2]
[348486351,1736571031852,-406.17724848,9.995e-05,2]
[348486352,1736571031864,-93.82275152,9.995e-05,2]
[348486353,1736571031874,-500.0,9.995e-05,2]
[348486354,1736571031884,-593.60711455,9.995e-05,2]
[348486355,1736571031894,-500.0,9.995e-05,2]
[348486356,1736571031904,-500.0,9.995e-05,2]
[348486357,1736571031914,-502.97058241,9.995e-05,2]
[348486358,1736571031923,-500.0,9.995e-05,2]
[348486359,1736571031932,-500.0,9.995e-05,2]
[348486360,1736571031941,-507.88865863,9.995e-05,2]
[348486361,1736571031951,-515.09357095,9.995e-05,2]
[348486362,1736571031962,-499.89267246,9.995e-05,2]
[348486363,1736571031972,-510.61719076,9.995e-05,2]
[348486364,1736571031982,-488.88649027,9.995e-05,2]
[348486365,1736571031992,-511.5714427,9.995e-05,2]
[348486366,1736571032003,-500.0,9.995e-05,2]
[348486367,1736571032014,-507.54620621,9.995e-05,2]
[348486368,1736571032026,-508.65989252,9.995e-05,2]
[348486369,1736571032035,-621.76215299,9.995e-05,2]
[348486370,1736571032046,-542.99397272,9.995e-05,2]
[348486371,1736571032070,-528.04112938,9.995e-05,2]
[348486372,1736571032080,-504.96068667,9.995e-05,2]
[348486373,1736571032090,-500.0,9.995e-05,2]
[348486374,1736571032100,-500.0,9.995e-05,2]
[348486375,1736571032111,-500.0,9.995e-05,2]
[348486376,1736571032122,-500.0,9.995e-05,2]
[348486377,1736571032131,-500.0,9.995e-05,2]
[348486378,1736571032142,-503.64217883,9.995e-05,2]
[348486379,1736571032153,-559.16215026,9.995e-05,2]
[348486380,1736571032163,-507.42031927,9.995e-05,2]
[348486381,1736571032173,-506.56282964,9.995e-05,2]
[348486382,1736571032183,-238.03855015,9.995e-05,2]
[348486383,1736571032193,-504.17283906,9.995e-05,2]
[348486384,1736571032203,-508.52929724,9.995e-05,2]
[348486385,1736571032214,-503.35315936,9.995e-05,2]
[348486386,1736571032225,-500.0,9.995e-05,2]
[348486387,1736571032236,-500.0,9.995e-05,2]
[348486388,1736571032246,-500.0,9.995e-05,2]
[348486389,1736571032257,-507.44747621,9.995e-05,2]
[348486390,1736571032266,-500.0,9.995e-05,2]
[348486391,1736571032277,-509.88181001,9.995e-05,2]
[348486392,1736571032287,-509.4936173,9.995e-05,2]
[348486393,1736571032297,-500.0,9.995e-05,2]
[348486394,1736571032307,-500.0,9.995e-05,2]
[348486395,1736571032317,-500.0,9.995e-05,2]
[348486396,1736571032327,-509.51999374,9.995e-05,2]
[348486397,1736571032337,-505.86864279,9.995e-05,2]
[348486398,1736571032347,-500.0,9.995e-05,2]
[348486399,1736571032358,-500.0,9.995e-05,2]
[348486400,1736571032368,-500.0,9.995e-05,2]
[348486401,1736571032378,-500.0,9.995e-05,2]
[348486402,1736571032388,-500.0,9.995e-05,2]
[348486403,1736571032398,-565.8785149,9.995e-05,2]
[348486404,1736571032408,-507.43775725,9.995e-05,2]
[348486405,1736571032419,-507.86721059,9.995e-05,2]
[348486406,1736571032429,-500.0,9.995e-05,2]
[348486407,1736571032440,-500.0,9.995e-05,2]
[348486408,1736571032451,-505.11518823,9.995e-05,2]
[348486409,1736571032461,-500.0,9.995e-05,2]
[348486410,1736571032471,-500.0,9.995e-05,2]
[348486411,1736571032483,-517.01127769,9.995e-05,2]
[348486412,1736571032494,-500.0,9.995e-05,2]
[348486413,1736571032504,-500.0,9.995e-05,2]
[348486414,1736571032514,-345.76266854,9.995e-05,2]
[348486415,1736571032523,-503.4459378,9.995e-05,2]
[348486416,1736571032533,-500.0,9.995e-05,2]
[348486417,1736571032542,-508.6279588,9.995e-05,2]
[348486418,1736571032558,-500.0,9.995e-05,2]
[348486419,1736571032569,-500.0,9.995e-05,2]
[348486420,1736571032578,-500.0,9.995e-05,2]
[348486421,1736571032588,-500.0,9.995e-05,2]
[348486422,1736571032597,-166.95225129,9.995e-05,2]
[348486423,1736571032607,-500.0,9.995e-05,2]
[348486424,1736571032617,-505.88575963,9.995e-05,2]
[348486425,1736571032626,-500.0,9.995e-05,2]
[348486426,1736571032636,-201.1776685,9.995e-05,2]
[348486427,1736571032646,-500.0,9.995e-05,2]
[348486428,1736571032656,-500.0,9.995e-05,2]
[348486429,1736571032666,-507.48491379,9.995e-05,2]
[348486430,1736571032676,-500.0,9.995e-05,2]
[348486431,1736571032686,-500.0,9.995e-05,2]
[348486432,1736571032696,-501.0066435,9.995e-05,2]
[348486433,1736571032706,-500.0,9.995e-05,2]
[348486434,1736571032716,-500.0,9.995e-05,2]
[348486435,1736571032726,-470.07715439,9.995e-05,2]
[348486436,1736571032737,-500.0,9.995e-05,2]
[348486437,1736571032747,-500.0,9.995e-05,2]
[348486438,1736571032759,-500.0,9.995e-05,2]
[348486439,1736571032776,-500.0,9.995e-05,2]
[348486440,1736571032786,-195.83690318,9.995e-05,2]
[348486441,1736571032797,-500.0,9.995e-05,2]
[348486442,1736571032808,-500.0,9.995e-05,2]
[348486443,1736571032818,-500.0,9.995e-05,2]
[348486444,1736571032829,-500.0,9.995e-05,2]
[348486445,1736571032841,-500.0,9.995e-05,2]
[348486446,1736571032850,-447.35651901,9.995e-05,2]
[348486447,1736571032861,-500.0,9.995e-05,2]
[348486448,1736571032871,-500.0,9.995e-05,2]
[348486449,1736571032881,-500.0,9.995e-05,2]
[348486450,1736571032891,-500.0,9.995e-05,2]
[348486451,1736571032901,-500.0,9.995e-05,2]
[348486452,1736571032911,-500.0,9.995e-05,2]
[348486453,1736571032922,-500.0,9.995e-05,2]
[348486454,1736571032933,-500.0,9.995e-05,2]
[348486455,1736571032942,-503.56671155,9.995e-05,2]
[348486456,1736571032952,-504.90580954,9.995e-05,2]
[348486457,1736571032962,-500.0,9.995e-05,2]
[348486458,1736571032972,-500.0,9.995e-05,2]
[348486459,1736571032982,-499.93473122,9.995e-05,2]
[348486460,1736571032993,-500.0,9.995e-05,2]
[348486461,1736571033003,-501.67763812,9.995e-05,2]
[348486462,1736571033013,-500.0,9.995e-05,2]
[348486463,1736571033023,-504.23859232,9.995e-05,2]
[348486464,1736571033034,-621.86804801,9.995e-05,2]
[348486465,1736571033044,-520.86489836,9.995e-05,2]
[348486466,1736571033054,-500.0,9.995e-05,2]
[348486467,1736571033069,-500.75135644,9.995e-05,2]
[348486468,1736571033079,-500.0,9.995e-05,2]
[348486469,1736571033089,-500.0,9.995e-05,2]
[348486470,1736571033100,-500.0,9.995e-05,2]
[348486471,1736571033110,-500.0,9.995e-05,2]
[348486472,1736571033120,-500.0,9.995e-05,2]
[348486473,1736571033130,-509.69,9.995e-05,2]
[348486474,1736571033141,-500.0,9.995e-05,2]
[348486475,1736571033151,-500.0,9.995e-05,2]
[348486476,1736571033161,-500.0,9.995e-05,2]
[348486477,1736571033170,-500.0,9.995e-05,2]
[348486478,1736571033180,-500.0,9.995e-05,2]
[348486479,1736571033191,-500.0,9.995e-05,2]
[348486480,1736571033201,-500.0,9.995e-05,2]
[348486481,1736571033212,-528.50112427,9.995e-05,2]
[348486482,1736571033222,-500.0,9.995e-05,2]
[348486483,1736571033232,-156.79770147,9.995e-05,2]
[348486484,1736571033243,-500.0,9.995e-05,2]
[348486485,1736571033252,-590.4402194,9.995e-05,2]
[348486486,1736571033262,-500.0,9.995e-05,2]
[348486487,1736571033272,-500.0,9.995e-05,2]
[348486488,1736571033282,-688.49,9.995e-05,2]
[348486489,1736571033291,-876.47,9.996e-05,2]
[348486490,1736571033301,-1112.4,9.996e-05,2]
[348486491,1736571033311,-1014.56,9.996e-05,2]
[348486492,1736571033321,-2305.53,9.996e-05,2]
[348486493,1736571033331,-1480.89,9.996e-05,2]
[348486494,1736571033341,-774.37,9.996e-05,2]
[348486495,1736571033350,-806.84,9.996e-05,2]
[348486496,1736571033360,-519.18830902,9.996e-05,2]
[348486497,1736571033371,-956.82,9.996e-05,2]
[348486498,1736571033380,-1961.6,9.996e-05,2]
[348486499,1736571033390,-848.75,9.996e-05,2]
[348486500,1736571033401,-714.96,9.996e-05,2]
[348486501,1736571033411,-500.0,9.996e-05,2]
[348486502,1736571033422,-500.0,9.996e-05,2]
[348486503,1736571033432,-743.2,9.996e-05,2]
[348486504,1736571033442,-500.0,9.996e-05,2]
[348486505,1736571033452,-500.0,9.996e-05,2]
[348486506,1736571033462,-1660.85,9.996e-05,2]
[348486507,1736571033472,-500.0,9.996e-05,2]
[348486508,1736571033483,-2910.08,9.996e-05,2]
[348486509,1736571033492,-614.19,9.996e-05,2]
[348486510,1736571033503,-500.0,9.996e-05,2]
[348486511,1736571033512,-500.0,9.996e-05,2]
[348486512,1736571033522,-500.0,9.996e-05,2]
[348486513,1736571033532,-962.59,9.996e-05,2]
[348486514,1736571033544,-500.0,9.997e-05,2]
[348486515,1736571033554,-1543.77,9.997e-05,2]
[348486516,1736571033568,-500.0,9.997e-05,2]
[348486517,1736571033579,-781.23,9.997e-05,2]
[348486518,1736571033590,-587.94,9.997e-05,2]
[348486519,1736571033600,-487.3651128,9.997e-05,2]
[348486520,1736571033610,-1000.0,9.997e-05,2]
[348486521,1736571033619,-500.0,9.997e-05,2]
[348486522,1736571033630,-501.17976381,9.997e-05,2]
[348486523,1736571033639,-500.0,9.997e-05,2]
[348486524,1736571033649,-502.43594044,9.997e-05,2]
[348486525,1736571033659,-500.0,9.997e-05,2]
[348486526,1736571033669,-501.89620894,9.997e-05,2]
[348486527,1736571033679,-506.30004749,9.997e-05,2]
[348486528,1736571033689,-327.95681667,9.997e-05,2]
[348486529,1736571033699,-503.43718008,9.997e-05,2]
[348486530,1736571033709,-503.03952301,9.997e-05,2]
[348486531,1736571033719,-500.56017618,9.997e-05,2]
[348486532,1736571033730,-504.37674503,9.997e-05,2]
[348486533,1736571033739,-503.5088649,9.997e-05,2]
[348486534,1736571033749,-500.0,9.997e-05,2]
[348486535,1736571033760,-513.30311442,9.997e-05,2]
[348486536,1736571033775,-512.15286448,9.997e-05,2]
[348486537,1736571033785,-500.0,9.997e-05,2]
[348486538,1736571033795,-211.46834202,9.997e-05,2]
[348486539,1736571033806,-547.98588364,9.997e-05,2]
[348486540,1736571033815,-500.0,9.997e-05,2]
[348486541,1736571033826,-500.41840024,9.997e-05,2]
[348486542,1736571033835,-503.03068136,9.997e-05,2]
[348486543,1736571033845,-502.31530233,9.997e-05,2]
[348486544,1736571033856,-500.0,9.997e-05,2]
[348486545,1736571033866,-502.43534596,9.997e-05,2]
[348486546,1736571033877,-500.0,9.997e-05,2]
[348486547,1736571033887,-500.0,9.997e-05,2]
[348486548,1736571033897,-500.0,9.997e-05,2]
[348486549,1736571033907,-500.0,9.997e-05,2]
[348486550,1736571033917,-1429.79,9.997e-05,2]
[348486551,1736571033927,-505.72853347,9.997e-05,2]
[348486552,1736571033937,-504.65600898,9.997e-05,2]
[348486553,1736571033947,-500.0,9.997e-05,2]
[348486554,1736571033957,-500.0,9.997e-05,2]
[348486555,1736571033967,-504.40186911,9.997e-05,2]
[348486556,1736571033977,-504.49712938,9.997e-05,2]
[348486557,1736571033987,-500.0,9.997e-05,2]
[348486558,1736571033997,-503.70157187,9.997e-05,2]
[348486559,1736571034007,-502.9228783,9.997e-05,2]
[348486560,1736571034017,-504.48953806,9.997e-05,2]
[348486561,1736571034028,-641.77833928,9.997e-05,2]
[348486562,1736571034038,-506.68544461,9.997e-05,2]
[348486563,1736571034048,-512.2204999,9.997e-05,2]
[348486564,1736571034057,-519.63084615,9.997e-05,2]
[348486565,1736571034067,-592.04787346,9.997e-05,2]
[348486566,1736571034077,-502.42267028,9.997e-05,2]
[348486567,1736571034087,-502.48987086,9.997e-05,2]
[348486568,1736571034097,-507.32697882,9.997e-05,2]
[348486569,1736571034107,-506.39551208,9.997e-05,2]
[348486570,1736571034117,-502.38686189,9.997e-05,2]
[348486571,1736571034127,-508.70918335,9.997e-05,2]
[348486572,1736571034137,-506.74805275,9.997e-05,2]
[348486573,1736571034146,-509.37145263,9.997e-05,2]
[348486574,1736571034156,-505.57838712,9.997e-05,2]
[348486575,1736571034166,-504.82932773,9.997e-05,2]
[348486576,1736571034176,-500.0,9.997e-05,2]
[348486577,1736571034186,-500.0,9.997e-05,2]
[348486578,1736571034195,-500.06508337,9.997e-05,2]
[348486579,1736571034206,-504.32435812,9.997e-05,2]
[348486580,1736571034216,-500.0,9.997e-05,2]
[348486581,1736571034225,-504.34876174,9.997e-05,2]
[348486582,1736571034243,-651.59,9.997e-05,2]
[348486583,1736571034257,-500.0,9.997e-05,2]
[348486584,1736571034268,-504.20088213,9.997e-05,2]
[348486585,1736571034278,-503.96691245,9.997e-05,2]
[348486586,1736571034288,-503.85139917,9.997e-05,2]
[348486587,1736571034299,-521.4404022,9.997e-05,2]
[348486588,1736571034309,-593.07291202,9.997e-05,2]
[348486589,1736571034319,-505.92371503,9.997e-05,2]
[348486590,1736571034329,-509.80447968,9.997e-05,2]
[348486591,1736571034340,-751.2,9.997e-05,2]